[Event "*** SCC Grand Prix: Titled Tuesday Blitz"]
[Site "Chess.com"]
[Date "2020.07.07"]
[Round "1"]
[White "Nara_Kh"]
[Black "Rish_97"]
[Result "0-1"]
[WhiteElo "2313"]
[BlackElo "2642"]
[TimeControl "180+1"]
[EndTime "10:08:43 PDT"]
[Termination "Rish_97 won by resignation"]

1. e4 {[%clk 0:03:00.5]} 1... c5 {[%clk 0:02:59.2]} 2. Be2 {[%clk 0:02:59.7]}
2... e6 {[%clk 0:02:56.1]} 3. f4 {[%clk 0:02:58.1]} 3... d5 {[%clk 0:02:55.6]}
4. exd5 {[%clk 0:02:43.6]} 4... exd5 {[%clk 0:02:55.2]} 5. Nf3 {[%clk
0:02:32.9]} 5... Nf6 {[%clk 0:02:51.9]} 6. O-O {[%clk 0:02:32.6]} 6... Nc6
{[%clk 0:02:51.4]} 7. d4 {[%clk 0:02:23.5]} 7... cxd4 {[%clk 0:02:46.3]} 8. Nxd4
{[%clk 0:02:19.2]} 8... Bc5 {[%clk 0:02:42]} 9. c3 {[%clk 0:02:11.6]} 9... Qb6
{[%clk 0:02:34.2]} 10. Kh1 {[%clk 0:01:45.2]} 10... Nxd4 {[%clk 0:02:19.7]} 11.
cxd4 {[%clk 0:01:46.1]} 11... Bxd4 {[%clk 0:02:20.6]} 12. f5 {[%clk 0:01:39.2]}
12... Ne4 {[%clk 0:02:13.2]} 13. Bf4 {[%clk 0:01:20.5]} 13... O-O {[%clk
0:02:04.9]} 14. Nc3 {[%clk 0:01:13.3]} 14... Bxc3 {[%clk 0:01:55.5]} 15. bxc3
{[%clk 0:01:05.1]} 15... Nf2+ {[%clk 0:01:55.7]} 16. Rxf2 {[%clk 0:01:04.7]}
16... Qxf2 {[%clk 0:01:56.6]} 17. Bg3 {[%clk 0:00:58.6]} 17... Qxf5 {[%clk
0:01:56.1]} 18. Bf3 {[%clk 0:00:56.2]} 18... Be6 {[%clk 0:01:53.4]} 19. Qd4
{[%clk 0:00:54.1]} 19... Rfc8 {[%clk 0:01:46.6]} 20. h3 {[%clk 0:00:37.2]} 20...
Rc4 {[%clk 0:01:45.3]} 21. Qd2 {[%clk 0:00:35.8]} 21... Rac8 {[%clk 0:01:44.7]}
22. Rc1 {[%clk 0:00:23.6]} 22... h5 {[%clk 0:01:40.9]} 23. Be2 {[%clk
0:00:19.8]} 23... R4c6 {[%clk 0:01:25]} 24. Bd3 {[%clk 0:00:20.1]} 24... Qf6
{[%clk 0:01:23.1]} 25. Rf1 {[%clk 0:00:19.9]} 25... Qxc3 {[%clk 0:01:20.6]} 26.
Qe3 {[%clk 0:00:19.7]} 26... Rc4 {[%clk 0:00:40.2]} 27. Be5 {[%clk 0:00:19.4]}
27... Re4 {[%clk 0:00:26.2]} 28. Qxe4 {[%clk 0:00:15.7]} 28... dxe4 {[%clk
0:00:25.2]} 29. Bxc3 {[%clk 0:00:16.6]} 29... exd3 {[%clk 0:00:25.7]} 30. Bd2
{[%clk 0:00:14.8]} 30... Rc2 {[%clk 0:00:25.6]} 31. Rd1 {[%clk 0:00:13]} 31...
Bxa2 {[%clk 0:00:23.1]} 32. Be3 {[%clk 0:00:13.3]} 32... Bd5 {[%clk 0:00:20.6]}
33. Kg1 {[%clk 0:00:09.1]} 33... Rxg2+ {[%clk 0:00:20]} 34. Kf1 {[%clk
0:00:09.5]} 34... Rg3 {[%clk 0:00:20.4]} 35. Rxd3 {[%clk 0:00:09.6]} 35... Bc4
{[%clk 0:00:19.2]} 36. Kf2 {[%clk 0:00:10]} 36... Bxd3 {[%clk 0:00:17.8]} 37.
Kxg3 {[%clk 0:00:09.5]} 37... a5 {[%clk 0:00:18.7]} 38. Bb6 {[%clk 0:00:08.5]}
38... a4 {[%clk 0:00:19]} 39. Bc5 {[%clk 0:00:08.8]} 39... f6 {[%clk 0:00:18.3]}
40. h4 {[%clk 0:00:06.9]} 40... Kf7 {[%clk 0:00:18.6]} 41. Kf4 {[%clk
0:00:07.4]} 41... Ke6 {[%clk 0:00:18.9]} 42. Ke3 {[%clk 0:00:07.8]} 42... Bh7
{[%clk 0:00:17.2]} 43. Kd4 {[%clk 0:00:07.8]} 43... g5 {[%clk 0:00:17.4]} 44.
hxg5 {[%clk 0:00:02]} 44... fxg5 {[%clk 0:00:18.3]} 45. Ke3 {[%clk 0:00:02.1]}
45... h4 {[%clk 0:00:18.6]} 46. Kf3 {[%clk 0:00:02.1]} 46... Kf5 {[%clk
0:00:19]} 47. Kg2 {[%clk 0:00:01.7]} 47... Bg8 {[%clk 0:00:19.2]} 48. Kh2 {[%clk
0:00:02.6]} 48... g4 {[%clk 0:00:18]} 49. Bd6 {[%clk 0:00:03.1]} 49... g3+
{[%clk 0:00:17.8]} 50. Kh3 {[%clk 0:00:02.8]} 50... Kg5 {[%clk 0:00:15.4]} 51.
Be7+ {[%clk 0:00:02.5]} 51... Kh5 {[%clk 0:00:15.9]} 52. Bxh4 {[%clk 0:00:03.1]}
52... g2 {[%clk 0:00:15.5]} 53. Bf2 {[%clk 0:00:03.4]} 53... Bd5 {[%clk
0:00:14.6]} 54. Kh2 {[%clk 0:00:03.4]} 54... Kg4 {[%clk 0:00:14.7]} 55. Bc5
{[%clk 0:00:03.7]} 55... Kf3 {[%clk 0:00:15]} 56. Kg1 {[%clk 0:00:04]} 56... b5
{[%clk 0:00:14.3]} 57. Bb4 {[%clk 0:00:04.1]} 57... Ke2 {[%clk 0:00:14.6]} 58.
Bc5 {[%clk 0:00:03.7]} 58... Kd3 {[%clk 0:00:15.1]} 59. Bf8 {[%clk 0:00:03.6]}
59... Kc4 {[%clk 0:00:14.6]} 60. Kf2 {[%clk 0:00:04.1]} 60... b4 {[%clk
0:00:15.1]} 61. Bg7 {[%clk 0:00:03.8]} 61... a3 {[%clk 0:00:14.9]} 62. Bf6
{[%clk 0:00:03.5]} 62... b3 {[%clk 0:00:14.7]} 63. Be5 {[%clk 0:00:03.5]} 63...
b2 {[%clk 0:00:14.6]} 0-1

[Event "*** SCC Grand Prix: Titled Tuesday Blitz"]
[Site "Chess.com"]
[Date "2020.07.07"]
[Round "1"]
[White "LaPorfia"]
[Black "Andrei_Belozerov"]
[Result "0-1"]
[WhiteElo "2223"]
[BlackElo "2571"]
[TimeControl "180+1"]
[EndTime "10:08:46 PDT"]
[Termination "Andrei_Belozerov won by checkmate"]

1. d4 {[%clk 0:03:00.7]} 1... d5 {[%clk 0:02:57.7]} 2. Nf3 {[%clk 0:02:59.8]}
2... Nf6 {[%clk 0:02:56.7]} 3. Bf4 {[%clk 0:02:59.3]} 3... c5 {[%clk 0:02:56.6]}
4. e3 {[%clk 0:02:58.6]} 4... Nc6 {[%clk 0:02:56.5]} 5. c3 {[%clk 0:02:58.3]}
5... Qb6 {[%clk 0:02:56.2]} 6. Qb3 {[%clk 0:02:58.3]} 6... c4 {[%clk 0:02:55]}
7. Qxb6 {[%clk 0:02:58.1]} 7... axb6 {[%clk 0:02:54.3]} 8. Na3 {[%clk
0:02:58.2]} 8... Ra5 {[%clk 0:02:51.9]} 9. Nc2 {[%clk 0:02:53.3]} 9... Bf5
{[%clk 0:02:50.6]} 10. Kd1 {[%clk 0:02:35.8]} 10... e6 {[%clk 0:02:43.1]} 11. a3
{[%clk 0:02:31]} 11... b5 {[%clk 0:02:40.1]} 12. Rc1 {[%clk 0:02:23.7]} 12...
Ne4 {[%clk 0:02:34.4]} 13. Bg3 {[%clk 0:02:14.9]} 13... h5 {[%clk 0:02:28.9]}
14. Nh4 {[%clk 0:02:09.2]} 14... Bh7 {[%clk 0:02:27.6]} 15. f4 {[%clk
0:01:45.6]} 15... Be7 {[%clk 0:02:15]} 16. Nf3 {[%clk 0:01:45.3]} 16... f6
{[%clk 0:01:59.9]} 17. Nd2 {[%clk 0:01:38.3]} 17... Kd7 {[%clk 0:01:56.7]} 18.
Nxe4 {[%clk 0:01:37.9]} 18... Bxe4 {[%clk 0:01:55.5]} 19. Ne1 {[%clk 0:01:36.6]}
19... h4 {[%clk 0:01:54.7]} 20. Bf2 {[%clk 0:01:35.3]} 20... h3 {[%clk
0:01:55.1]} 21. Bg3 {[%clk 0:01:25.9]} 21... Bd6 {[%clk 0:01:51.7]} 22. Rg1
{[%clk 0:01:25.2]} 22... hxg2 {[%clk 0:01:50.2]} 23. Bxg2 {[%clk 0:01:25.3]}
23... Bxg2 {[%clk 0:01:50.2]} 24. Nxg2 {[%clk 0:01:25.9]} 24... Ne7 {[%clk
0:01:50.4]} 25. Nh4 {[%clk 0:01:16.9]} 25... Raa8 {[%clk 0:01:46.3]} 26. Nf3
{[%clk 0:01:15.7]} 26... Rh3 {[%clk 0:01:42.8]} 27. Ke2 {[%clk 0:01:12.3]} 27...
Rah8 {[%clk 0:01:41.6]} 28. Rg2 {[%clk 0:01:12.2]} 28... Nf5 {[%clk 0:01:41.4]}
29. Rcg1 {[%clk 0:01:11.7]} 29... Bf8 {[%clk 0:01:40.5]} 30. Kf2 {[%clk
0:01:10.4]} 30... Nd6 {[%clk 0:01:39.8]} 31. Nd2 {[%clk 0:01:10]} 31... Ke7
{[%clk 0:01:38.7]} 32. Ke2 {[%clk 0:01:09.6]} 32... Kf7 {[%clk 0:01:38.5]} 33.
Kf2 {[%clk 0:01:09.9]} 33... R8h7 {[%clk 0:01:37.6]} 34. Ke2 {[%clk 0:01:09.3]}
34... Nf5 {[%clk 0:01:32]} 35. Kf2 {[%clk 0:01:08.7]} 35... Bd6 {[%clk 0:01:26]}
36. Nf3 {[%clk 0:01:07.8]} 36... R3h6 {[%clk 0:01:13.4]} 37. Ke2 {[%clk
0:01:06.5]} 37... Rg6 {[%clk 0:01:12.2]} 38. Kf2 {[%clk 0:01:06.6]} 38... Rh3
{[%clk 0:01:11.4]} 39. Nd2 {[%clk 0:00:58.1]} 39... Rg4 {[%clk 0:01:02.3]} 40.
Nf3 {[%clk 0:00:57.4]} 40... Bc7 {[%clk 0:00:59.6]} 41. Nd2 {[%clk 0:00:55.4]}
41... Bd8 {[%clk 0:00:38.2]} 42. Nf3 {[%clk 0:00:54.8]} 42... Be7 {[%clk
0:00:38.3]} 43. Nd2 {[%clk 0:00:54.7]} 43... Nd6 {[%clk 0:00:38.7]} 44. Kf3
{[%clk 0:00:53.7]} 44... Rg6 {[%clk 0:00:38.3]} 45. Kf2 {[%clk 0:00:53.6]} 45...
Rgh6 {[%clk 0:00:34.4]} 46. Nf3 {[%clk 0:00:53]} 46... Ne4+ {[%clk 0:00:32.7]}
47. Ke2 {[%clk 0:00:52.8]} 47... Bd6 {[%clk 0:00:32.1]} 48. Nd2 {[%clk
0:00:52.7]} 48... Nxd2 {[%clk 0:00:31.3]} 49. Kxd2 {[%clk 0:00:53.3]} 49... g6
{[%clk 0:00:29]} 50. Ke2 {[%clk 0:00:53.2]} 50... R6h5 {[%clk 0:00:29.1]} 51.
Kf3 {[%clk 0:00:53.3]} 51... Rf5 {[%clk 0:00:28.5]} 52. Ke2 {[%clk 0:00:51.7]}
52... Rfh5 {[%clk 0:00:26.9]} 53. Kf3 {[%clk 0:00:51.7]} 53... g5 {[%clk
0:00:27.2]} 54. fxg5 {[%clk 0:00:51.5]} 54... Rxg5 {[%clk 0:00:26]} 55. Kf2
{[%clk 0:00:48]} 55... Bxg3+ {[%clk 0:00:25]} 56. hxg3 {[%clk 0:00:46.5]} 56...
Kg6 {[%clk 0:00:24.9]} 57. Kf3 {[%clk 0:00:45.8]} 57... Kf5 {[%clk 0:00:20.9]}
58. Kf2 {[%clk 0:00:40.9]} 58... e5 {[%clk 0:00:20.7]} 59. Kf3 {[%clk
0:00:37.4]} 59... e4+ {[%clk 0:00:19.7]} 60. Kf2 {[%clk 0:00:36.9]} 60... Kg4
{[%clk 0:00:19.9]} 61. Ke2 {[%clk 0:00:34.2]} 61... Rf5 {[%clk 0:00:19.9]} 62.
Ke1 {[%clk 0:00:32.8]} 62... Rf3 {[%clk 0:00:19.7]} 63. Ke2 {[%clk 0:00:32.8]}
63... Rfxg3 {[%clk 0:00:19.7]} 64. Rxg3+ {[%clk 0:00:33.1]} 64... Rxg3 {[%clk
0:00:19.6]} 65. Rf1 {[%clk 0:00:30.9]} 65... Rg2+ {[%clk 0:00:19.6]} 66. Ke1
{[%clk 0:00:28.9]} 66... f5 {[%clk 0:00:19.5]} 67. Rf2 {[%clk 0:00:23.8]} 67...
Rxf2 {[%clk 0:00:19]} 68. Kxf2 {[%clk 0:00:24.7]} 68... f4 {[%clk 0:00:19.9]}
69. Ke2 {[%clk 0:00:20.7]} 69... f3+ {[%clk 0:00:18.5]} 70. Kf2 {[%clk
0:00:20.9]} 70... Kh3 {[%clk 0:00:18.5]} 71. Kf1 {[%clk 0:00:20.9]} 71... Kg3
{[%clk 0:00:18.5]} 72. Kg1 {[%clk 0:00:20.9]} 72... f2+ {[%clk 0:00:18.4]} 73.
Kf1 {[%clk 0:00:21.8]} 73... Kf3 {[%clk 0:00:17.6]} 74. a4 {[%clk 0:00:21.8]}
74... bxa4 {[%clk 0:00:17.1]} 75. b4 {[%clk 0:00:22.6]} 75... cxb3 {[%clk
0:00:17.1]} 76. c4 {[%clk 0:00:22.5]} 76... b2 {[%clk 0:00:17.6]} 77. cxd5
{[%clk 0:00:21.8]} 77... b1=Q# {[%clk 0:00:17.5]} 0-1

[Event "*** SCC Grand Prix: Titled Tuesday Blitz"]
[Site "Chess.com"]
[Date "2020.07.07"]
[Round "1"]
[White "EfM13"]
[Black "GothamChess"]
[Result "0-1"]
[WhiteElo "2217"]
[BlackElo "2566"]
[TimeControl "180+1"]
[EndTime "10:08:47 PDT"]
[Termination "GothamChess won by checkmate"]

1. e4 {[%clk 0:03:00.9]} 1... c6 {[%clk 0:02:57.5]} 2. d4 {[%clk 0:03:00.4]}
2... d5 {[%clk 0:02:57]} 3. exd5 {[%clk 0:03:01]} 3... cxd5 {[%clk 0:02:56.5]}
4. Bd3 {[%clk 0:03:01.5]} 4... Nc6 {[%clk 0:02:53]} 5. c3 {[%clk 0:03:01.2]}
5... g6 {[%clk 0:02:50.6]} 6. Nf3 {[%clk 0:03:00.4]} 6... Nh6 {[%clk 0:02:48.5]}
7. h3 {[%clk 0:02:58.4]} 7... Bg7 {[%clk 0:02:48.1]} 8. Qe2 {[%clk 0:02:57.3]}
8... O-O {[%clk 0:02:45.1]} 9. O-O {[%clk 0:02:57.3]} 9... Bf5 {[%clk
0:02:34.8]} 10. Na3 {[%clk 0:02:55.8]} 10... Bxd3 {[%clk 0:02:28.8]} 11. Qxd3
{[%clk 0:02:55.4]} 11... f6 {[%clk 0:02:28.2]} 12. Re1 {[%clk 0:02:39.1]} 12...
Nf7 {[%clk 0:02:27]} 13. Nc2 {[%clk 0:02:25.9]} 13... e5 {[%clk 0:02:26.3]} 14.
dxe5 {[%clk 0:02:22.5]} 14... fxe5 {[%clk 0:02:23.3]} 15. Qb5 {[%clk 0:02:22.2]}
15... Qd7 {[%clk 0:02:13.1]} 16. Be3 {[%clk 0:02:15.6]} 16... a6 {[%clk
0:02:06.9]} 17. Qb6 {[%clk 0:02:09.2]} 17... Nd6 {[%clk 0:02:01.9]} 18. Rad1
{[%clk 0:02:00.2]} 18... Nc4 {[%clk 0:01:53.6]} 19. Qc5 {[%clk 0:01:59.1]} 19...
Rad8 {[%clk 0:01:44.2]} 20. b3 {[%clk 0:01:47.2]} 20... b6 {[%clk 0:01:41.5]}
21. Qxd5+ {[%clk 0:01:36.6]} 21... Qxd5 {[%clk 0:01:41.3]} 22. Rxd5 {[%clk
0:01:36.6]} 22... Rxd5 {[%clk 0:01:36.7]} 23. bxc4 {[%clk 0:01:36.3]} 23... Ra5
{[%clk 0:01:35.7]} 24. a3 {[%clk 0:01:23.6]} 24... Ra4 {[%clk 0:01:35.2]} 25.
Bxb6 {[%clk 0:01:19.3]} 25... Rxc4 {[%clk 0:01:33.7]} 26. Ne3 {[%clk 0:01:18.1]}
26... Rxc3 {[%clk 0:01:31.3]} 27. Nd5 {[%clk 0:01:17.9]} 27... Rb3 {[%clk
0:01:21.9]} 28. Bc5 {[%clk 0:01:16.8]} 28... Rd8 {[%clk 0:01:20.9]} 29. Nc7
{[%clk 0:01:15.5]} 29... a5 {[%clk 0:01:13.1]} 30. Ne6 {[%clk 0:01:13.4]} 30...
Rdb8 {[%clk 0:01:09.2]} 31. Nxg7 {[%clk 0:01:11.6]} 31... Kxg7 {[%clk
0:01:09.4]} 32. Nxe5 {[%clk 0:01:08.7]} 32... Rb1 {[%clk 0:01:09.3]} 33. Nf3
{[%clk 0:00:50.6]} 33... Rxe1+ {[%clk 0:01:03]} 34. Nxe1 {[%clk 0:00:50.2]}
34... Rb5 {[%clk 0:01:03]} 35. Be3 {[%clk 0:00:44.2]} 35... Rb3 {[%clk
0:00:59.8]} 36. Bc5 {[%clk 0:00:43.9]} 36... Rc3 {[%clk 0:00:59.2]} 37. Bd6
{[%clk 0:00:41.2]} 37... Rc1 {[%clk 0:00:56.8]} 38. Kf1 {[%clk 0:00:41.2]} 38...
Kf7 {[%clk 0:00:51.3]} 39. Ke2 {[%clk 0:00:40.2]} 39... Ke6 {[%clk 0:00:51.6]}
40. Bf8 {[%clk 0:00:33.7]} 40... Ne7 {[%clk 0:00:49.9]} 41. Nd3 {[%clk
0:00:30.7]} 41... Ra1 {[%clk 0:00:47.5]} 42. Nc5+ {[%clk 0:00:27.3]} 42... Kf7
{[%clk 0:00:46.6]} 43. Bxe7 {[%clk 0:00:23.2]} 43... Kxe7 {[%clk 0:00:46.8]} 44.
a4 {[%clk 0:00:23.2]} 44... Ra3 {[%clk 0:00:37.8]} 45. f4 {[%clk 0:00:19.5]}
45... Rc3 {[%clk 0:00:32.7]} 46. Nb7 {[%clk 0:00:18.6]} 46... Rc4 {[%clk
0:00:17.5]} 47. Nxa5 {[%clk 0:00:18.5]} 47... Rxf4 {[%clk 0:00:14.2]} 48. Nb3
{[%clk 0:00:11.5]} 48... Rxa4 {[%clk 0:00:13]} 49. Nd2 {[%clk 0:00:11.5]} 49...
Ra3 {[%clk 0:00:12.6]} 50. Kf2 {[%clk 0:00:11.1]} 50... Kf6 {[%clk 0:00:12.3]}
51. Nf3 {[%clk 0:00:10.9]} 51... Kf5 {[%clk 0:00:12.7]} 52. g3 {[%clk
0:00:10.1]} 52... Ra2+ {[%clk 0:00:12.6]} 53. Ke3 {[%clk 0:00:09.6]} 53... Ra3+
{[%clk 0:00:13.5]} 54. Kf2 {[%clk 0:00:09.3]} 54... Ke4 {[%clk 0:00:14.1]} 55.
Ng5+ {[%clk 0:00:09.1]} 55... Kf5 {[%clk 0:00:12.9]} 56. Nxh7 {[%clk 0:00:08.8]}
56... Ra7 {[%clk 0:00:11.8]} 57. g4+ {[%clk 0:00:08.7]} 57... Kf4 {[%clk
0:00:10.9]} 58. Nf8 {[%clk 0:00:08.8]} 58... Ra2+ {[%clk 0:00:10.7]} 59. Ke1
{[%clk 0:00:06.8]} 59... Ra6 {[%clk 0:00:10.5]} 60. Kf2 {[%clk 0:00:04.9]} 60...
g5 {[%clk 0:00:08.2]} 61. Nh7 {[%clk 0:00:03.4]} 61... Ra2+ {[%clk 0:00:06.2]}
62. Kf1 {[%clk 0:00:02.3]} 62... Rh2 {[%clk 0:00:04.7]} 63. Kg1 {[%clk
0:00:01.2]} 63... Rxh3 {[%clk 0:00:04.7]} 64. Nf6 {[%clk 0:00:01.2]} 64... Ra3
{[%clk 0:00:01.8]} 65. Kf2 {[%clk 0:00:01.3]} 65... Ra2+ {[%clk 0:00:02.3]} 66.
Kf1 {[%clk 0:00:01.5]} 66... Ra6 {[%clk 0:00:03]} 67. Kf2 {[%clk 0:00:01.7]}
67... Rxf6 {[%clk 0:00:03.2]} 68. Kg2 {[%clk 0:00:01.8]} 68... Kxg4 {[%clk
0:00:03.9]} 69. Kh2 {[%clk 0:00:01.6]} 69... Kf4 {[%clk 0:00:04.8]} 70. Kg2
{[%clk 0:00:01.8]} 70... g4 {[%clk 0:00:05.4]} 71. Kg1 {[%clk 0:00:02.4]} 71...
Ra6 {[%clk 0:00:05.8]} 72. Kg2 {[%clk 0:00:03.3]} 72... Ra2+ {[%clk 0:00:05.6]}
73. Kg1 {[%clk 0:00:04.2]} 73... Kf3 {[%clk 0:00:06]} 74. Kf1 {[%clk 0:00:04.3]}
74... Ra1# {[%clk 0:00:06.1]} 0-1

[Event "*** SCC Grand Prix: Titled Tuesday Blitz"]
[Site "Chess.com"]
[Date "2020.07.07"]
[Round "1"]
[White "Sueetin"]
[Black "Korchmar_Vasiliy"]
[Result "1-0"]
[WhiteElo "2315"]
[BlackElo "2604"]
[TimeControl "180+1"]
[EndTime "10:08:49 PDT"]
[Termination "Sueetin won by resignation"]

1. d4 {[%clk 0:03:00.9]} 1... Nf6 {[%clk 0:03:00]} 2. c4 {[%clk 0:03:00.7]} 2...
c6 {[%clk 0:02:59.7]} 3. Nf3 {[%clk 0:02:59.9]} 3... d5 {[%clk 0:03:00]} 4. Nc3
{[%clk 0:03:00]} 4... a6 {[%clk 0:03:00]} 5. cxd5 {[%clk 0:02:59.2]} 5... cxd5
{[%clk 0:03:00.2]} 6. Bf4 {[%clk 0:02:58.8]} 6... Nc6 {[%clk 0:03:00.3]} 7. e3
{[%clk 0:02:58.9]} 7... Bg4 {[%clk 0:02:56.5]} 8. Be2 {[%clk 0:02:53.6]} 8... e6
{[%clk 0:02:56.5]} 9. h3 {[%clk 0:02:52.9]} 9... Bh5 {[%clk 0:02:55.3]} 10. O-O
{[%clk 0:02:49.9]} 10... Be7 {[%clk 0:02:49.8]} 11. Ne5 {[%clk 0:02:45.6]} 11...
Bxe2 {[%clk 0:02:47.6]} 12. Qxe2 {[%clk 0:02:46.5]} 12... Rc8 {[%clk 0:02:41.1]}
13. Rfc1 {[%clk 0:02:46.2]} 13... O-O {[%clk 0:02:36.5]} 14. Nxc6 {[%clk
0:02:19.6]} 14... Rxc6 {[%clk 0:02:37.4]} 15. Bg5 {[%clk 0:02:17.9]} 15... Nd7
{[%clk 0:02:30]} 16. Bxe7 {[%clk 0:02:17.4]} 16... Qxe7 {[%clk 0:02:30.9]} 17.
a3 {[%clk 0:02:10.2]} 17... Rfc8 {[%clk 0:02:28]} 18. Na2 {[%clk 0:02:09.5]}
18... Nb6 {[%clk 0:02:10.6]} 19. Rxc6 {[%clk 0:02:08.1]} 19... Rxc6 {[%clk
0:02:11.5]} 20. Rc1 {[%clk 0:02:07.8]} 20... Rxc1+ {[%clk 0:02:01.9]} 21. Nxc1
{[%clk 0:02:07.4]} 21... Qc7 {[%clk 0:02:02.5]} 22. Qd2 {[%clk 0:02:00.4]} 22...
h6 {[%clk 0:01:44.4]} 23. Nd3 {[%clk 0:02:00]} 23... Nc4 {[%clk 0:01:13.3]} 24.
Qc3 {[%clk 0:01:59.1]} 24... Qb6 {[%clk 0:01:10.5]} 25. a4 {[%clk 0:01:41.3]}
25... Kh7 {[%clk 0:00:33.5]} 26. b3 {[%clk 0:01:39.8]} 26... Na5 {[%clk
0:00:31.7]} 27. Nc5 {[%clk 0:01:39.2]} 27... Nc6 {[%clk 0:00:27.1]} 28. h4
{[%clk 0:01:18.7]} 28... Kg8 {[%clk 0:00:26.8]} 29. h5 {[%clk 0:01:18.1]} 29...
Qc7 {[%clk 0:00:09]} 30. b4 {[%clk 0:01:18.1]} 30... Qb6 {[%clk 0:00:07.2]} 31.
Nd3 {[%clk 0:00:56.4]} 31... Ne7 {[%clk 0:00:07.7]} 32. Qc5 {[%clk 0:00:38.8]}
32... Qd8 {[%clk 0:00:06.9]} 33. b5 {[%clk 0:00:32.5]} 33... Nf5 {[%clk
0:00:06.8]} 34. bxa6 {[%clk 0:00:22.4]} 34... bxa6 {[%clk 0:00:07.7]} 35. Nb4
{[%clk 0:00:19.7]} 35... Qg5 {[%clk 0:00:04.4]} 36. Nxa6 {[%clk 0:00:17.3]}
36... Qxh5 {[%clk 0:00:04.8]} 37. Qc2 {[%clk 0:00:12.8]} 37... Qg4 {[%clk
0:00:03.2]} 38. Kf1 {[%clk 0:00:08]} 38... Nh4 {[%clk 0:00:03.2]} 39. f3 {[%clk
0:00:08.3]} 39... Qg5 {[%clk 0:00:02.6]} 40. Qf2 {[%clk 0:00:07.7]} 40... Nf5
{[%clk 0:00:02.7]} 41. Ke2 {[%clk 0:00:07.1]} 41... Qd8 {[%clk 0:00:03.3]} 42.
Nc5 {[%clk 0:00:06.7]} 42... Qb6 {[%clk 0:00:03]} 43. Kf1 {[%clk 0:00:06.7]}
43... Qb1+ {[%clk 0:00:03]} 44. Qe1 {[%clk 0:00:06]} 44... Qa2 {[%clk
0:00:03.6]} 45. Qe2 {[%clk 0:00:05.3]} 45... Qa1+ {[%clk 0:00:03.7]} 46. Kf2
{[%clk 0:00:05.5]} 46... Qa3 {[%clk 0:00:04.3]} 47. Qc2 {[%clk 0:00:05.4]} 47...
Nd6 {[%clk 0:00:03.7]} 48. Qb3 {[%clk 0:00:03.6]} 48... Qa1 {[%clk 0:00:03.5]}
49. Qb8+ {[%clk 0:00:03.4]} 49... Kh7 {[%clk 0:00:03.6]} 50. Qxd6 {[%clk
0:00:04.3]} 50... Qa2+ {[%clk 0:00:03.9]} 51. Kg3 {[%clk 0:00:04.7]} 51... Qb1
{[%clk 0:00:04.4]} 52. Qf4 {[%clk 0:00:05]} 52... Qg6+ {[%clk 0:00:04.7]} 53.
Kf2 {[%clk 0:00:04.9]} 53... Qc2+ {[%clk 0:00:04.9]} 54. Kg3 {[%clk 0:00:04.9]}
54... f6 {[%clk 0:00:05.5]} 55. Kh2 {[%clk 0:00:05.2]} 55... Qg6 {[%clk
0:00:03.7]} 56. Qg3 {[%clk 0:00:04.9]} 56... Qh5+ {[%clk 0:00:03.9]} 57. Qh3
{[%clk 0:00:05.1]} 57... Qg5 {[%clk 0:00:04.4]} 58. Nxe6 {[%clk 0:00:05.5]}
58... Qxe3 {[%clk 0:00:04.5]} 59. Qg4 {[%clk 0:00:02.6]} 59... g5 {[%clk
0:00:01.9]} 60. Nf8+ {[%clk 0:00:01.7]} 60... Kg8 {[%clk 0:00:02.1]} 61. Ne6
{[%clk 0:00:02.6]} 61... Kf7 {[%clk 0:00:02.3]} 62. Qf5 {[%clk 0:00:03.2]} 62...
Qxe6 {[%clk 0:00:01.9]} 63. Qh7+ {[%clk 0:00:04.1]} 63... Ke8 {[%clk 0:00:02.2]}
64. Qh8+ {[%clk 0:00:04.2]} 64... Ke7 {[%clk 0:00:02.3]} 65. Qxh6 {[%clk
0:00:04.6]} 65... Qd6+ {[%clk 0:00:02.4]} 66. Kh3 {[%clk 0:00:04.7]} 66... Qf4
{[%clk 0:00:02.7]} 67. Qh7+ {[%clk 0:00:04.7]} 67... Ke6 {[%clk 0:00:03.3]} 68.
Qh5 {[%clk 0:00:04.4]} 68... Qf5+ {[%clk 0:00:02.9]} 69. Qg4 {[%clk 0:00:04.7]}
69... Qxg4+ {[%clk 0:00:02.5]} 70. Kxg4 {[%clk 0:00:05.6]} 1-0